bitfinex/quotes_SOLUSD_20230110
["timestamp","ask_amount","ask_price","bid_price","bid_amount"]
[1673327795562,46.76,16.045,16.028,66.81]
[1673327795772,46.76,16.045,16.029,20.0]
[1673327795981,20.0,16.056,16.03,44.69]
[1673327796195,109.0703,16.063,16.04,24.73]
[1673327796380,20.0,16.062,16.041,46.77]
[1673327796591,20.0,16.062,16.041,59.63923673]
[1673327796919,20.0,16.062,16.042,12.86923673]
[1673327797132,155.7503,16.072,16.05,123.67]
[1673327797344,155.7503,16.072,16.051,66.74]
[1673327797564,109.0703,16.072,16.051,79.60923673]
[1673327797871,20.0,16.071,16.052,32.86923673]
[1673327798062,20.0,16.071,16.053,66.74]
[1673327798398,109.0703,16.072,16.053,59.60923673]
[1673327798708,66.68,16.071,16.054,32.86923673]
[1673327798925,20.0,16.071,16.055,20.0]
[1673327799110,118.8552,16.074,16.06,24.69]
[1673327799330,46.66,16.078,16.06,24.69]
[1673327799535,20.0,16.077,16.061,12.86923673]
[1673327799746,46.67,16.076,16.061,12.86923673]
[1673327801555,20.0,16.076,16.061,12.86923673]
[1673327802057,20.0,16.076,16.06,24.69]
[1673327802271,20.0,16.076,16.058,46.72]
[1673327802272,20.0,16.074,16.053,46.74]
[1673327802481,63.68,16.073,16.054,20.0]
[1673327802696,20.0,16.072,16.052,12.86923673]
[1673327802909,20.0,16.072,16.051,46.74]
[1673327802910,83.68,16.071,16.05,24.81]
[1673327803228,20.0,16.07,16.05,24.81]
[1673327803443,20.0,16.068,16.05,24.81]
[1673327803632,46.69,16.067,16.05,24.81]
[1673327803846,20.0,16.066,16.05,24.81]
[1673327805451,20.0,16.064,16.05,24.81]
[1673327806489,46.7,16.065,16.05,24.81]
[1673327806490,46.7,16.065,16.05,37.67923673]
[1673327806698,46.67,16.075,16.051,66.74]
[1673327806911,46.67,16.075,16.06,24.69]
[1673327807124,20.0,16.074,16.06,24.69]
[1673327808921,66.67,16.076,16.06,24.69]
[1673327809119,17.0,16.075,16.06,24.69]
[1673327809864,17.0,16.075,16.061,20.0]
[1673327810383,17.0,16.075,16.06,24.69]
[1673327810601,46.67,16.074,16.06,24.69]
[1673327810918,17.0,16.073,16.06,24.69]
[1673327811426,17.0,16.074,16.06,24.69]
[1673327811861,20.0,16.073,16.06,24.69]
[1673327814385,46.67,16.075,16.06,24.69]
[1673327815224,20.0,16.074,16.06,24.69]
[1673327818469,46.67,16.075,16.061,12.86923673]
[1673327818800,20.0,16.078,16.062,20.0]
[1673327818995,66.66,16.078,16.062,20.0]
[1673327819325,20.0,16.077,16.061,46.71]
[1673327819728,20.0,16.077,16.061,20.0]
[1673327819935,20.0,16.077,16.061,32.86923673]
[1673327821407,17.0,16.076,16.06,24.72]
[1673327821641,20.0,16.074,16.06,24.72]
[1673327822036,46.67,16.075,16.061,20.0]
[1673327822244,66.67,16.077,16.061,66.71]
[1673327822454,66.67,16.077,16.061,20.0]
[1673327822686,66.67,16.077,16.06,84.30923673]
[1673327822874,66.67,16.077,16.06,37.58923673]
[1673327823517,46.67,16.077,16.06,37.58923673]
[1673327823728,46.65,16.081,16.062,20.0]
[1673327823938,158.3457,16.087,16.063,66.71]
[1673327824150,20.0,16.086,16.064,20.0]
[1673327824455,46.64,16.085,16.065,46.7]
[1673327824669,158.3457,16.087,16.07,24.58]
[1673327824881,111.7057,16.087,16.071,46.68]
[1673327825205,111.7057,16.087,16.072,20.0]
[1673327827079,20.0,16.086,16.07,24.58]
[1673327827315,20.0,16.084,16.07,24.58]
[1673327827519,20.0,16.084,16.069,20.0]
[1673327827737,20.0,16.084,16.07,20.0]
[1673327827920,46.64,16.085,16.071,20.0]
[1673327828252,46.63,16.089,16.073,20.0]
[1673327828469,157.5588,16.092,16.074,66.67]
[1673327828871,157.5588,16.092,16.075,20.0]
[1673327829081,20.0,16.091,16.076,20.0]
[1673327833309,20.0,16.091,16.077,12.87710373]
[1673327833630,25.6095781,16.093,16.08,24.69]
[1673327833631,5.6095781,16.093,16.08,24.69]
[1673327833819,5.6095781,16.093,16.081,46.65]
[1673327834024,5.6095781,16.093,16.083,20.0]
[1673327834245,5.6095781,16.093,16.084,20.0]
[1673327834455,5.6095781,16.093,16.085,20.0]
[1673327834667,5.6095781,16.093,16.086,20.0]
[1673327836886,5.6095781,16.093,16.086,32.87710373]
[1673327837085,5.6095781,16.093,16.087,20.0]
[1673327837615,5.6095781,16.093,16.088,20.0]
[1673327838458,5.6095781,16.093,16.087,20.0]
[1673327838664,5.6095781,16.093,16.088,20.0]
[1673327847727,5.6095781,16.093,16.089,20.0]
[1673327855271,5.6095781,16.093,16.09,20.0]
[1673327855703,5.6095781,16.093,16.091,12.87710373]
[1673327856124,5.6095781,16.093,16.089,20.0]
[1673327857814,5.6095781,16.093,16.09,20.0]
[1673327862203,302.36848528,16.13,16.09,20.0]
[1673327862421,66.58,16.108,16.092,20.0]
[1673327862643,20.0,16.108,16.094,20.0]
[1673327863066,20.0,16.108,16.096,20.0]
[1673327863593,20.0,16.108,16.097,20.0]
[1673327863807,20.0,16.108,16.095,20.0]
[1673327864330,46.58,16.107,16.092,20.0]
[1673327864648,46.58,16.107,16.091,20.0]
[1673327864649,20.0,16.106,16.091,20.0]
[1673327864968,20.0,16.104,16.091,20.0]
[1673327866724,20.0,16.104,16.092,20.0]
[1673327868740,20.0,16.104,16.091,66.63]
[1673327869382,20.0,16.104,16.092,20.0]
[1673327871266,20.0,16.104,16.091,66.63]
[1673327872423,46.56,16.113,16.091,20.0]
[1673327872625,112.7619,16.119,16.092,66.62]
[1673327872836,20.0,16.118,16.094,20.0]
[1673327873061,130.6699,16.118,16.096,20.0]
[1673327873262,130.6699,16.118,16.097,46.61]
[1673327873469,130.6699,16.118,16.098,40.0]
[1673327873806,130.6699,16.118,16.101,20.0]
[1673327874011,130.6699,16.118,16.103,20.0]
[1673327874201,130.6699,16.118,16.105,20.0]
[1673327874411,130.6699,16.118,16.106,20.0]
[1673327875360,110.6699,16.118,16.107,20.0]
[1673327875575,110.6699,16.118,16.108,20.0]
[1673327875791,20.0,16.121,16.108,20.0]
[1673327876005,20.0,16.121,16.108,66.58]
[1673327876212,20.0,16.121,16.108,20.0]
[1673327877144,20.0,16.121,16.109,20.0]
[1673327877363,34.51703114,16.118,16.09,123.7]
[1673327877691,66.57,16.111,16.093,20.0]
[1673327877909,20.0,16.11,16.093,20.0]
[1673327878115,20.0,16.11,16.094,46.62]
[1673327878304,20.0,16.11,16.095,20.0]
[1673327878629,20.0,16.11,16.097,20.0]
[1673327879045,20.0,16.111,16.097,20.0]
[1673327879693,20.0,16.111,16.099,20.0]
[1673327879890,20.0,16.111,16.1,20.0]
[1673327880410,30.64052,16.112,16.1,20.0]
[1673327880627,10.64052,16.112,16.1,44.73]
[1673327880826,10.64052,16.112,16.101,20.0]
[1673327883568,10.64052,16.112,16.103,20.0]
[1673327883874,10.64052,16.112,16.104,20.0]
[1673327884311,10.64052,16.112,16.103,20.0]
[1673327884312,10.64052,16.112,16.101,20.0]
[1673327894071,10.64052,16.112,16.101,18.0]
[1673327899656,10.64052,16.112,16.103,20.0]
[1673327899870,10.64052,16.112,16.105,20.0]
[1673327900072,10.64052,16.112,16.106,66.58]
[1673327900266,10.64052,16.112,16.107,20.0]
[1673327900267,2e-05,16.112,16.107,20.0]
[1673327900478,2e-05,16.112,16.108,46.58]
[1673327900710,2e-05,16.112,16.11,20.0]
[1673327901860,2e-05,16.112,16.108,102.08280595]
[1673327902072,2e-05,16.112,16.108,32.92826732]
[1673327902281,2e-05,16.112,16.1,26.42]
[1673327902492,2e-05,16.112,16.101,20.0]
[1673327903343,31.9895781,16.14,16.102,46.59]
[1673327903547,114.8439,16.127,16.12,26.09]
[1673327903751,31.7695781,16.14,16.12,26.09]
[1673327903962,181.3439,16.136,16.12,26.09]
[1673327904171,20.0,16.135,16.121,20.0]
[1673327905463,17.0,16.134,16.121,20.0]
[1673327905646,20.0,16.135,16.121,20.0]
[1673327906193,20.0,16.129,16.101,20.0]
[1673327906405,275.8978,16.128,16.101,20.0]
[1673327906593,20.0,16.127,16.105,20.0]
[1673327906923,20.0,16.125,16.107,20.0]
[1673327907133,63.53,16.124,16.107,20.0]
[1673327907336,20.0,16.123,16.107,20.0]
[1673327907665,20.0,16.123,16.106,60.54220136]
[1673327907666,20.0,16.121,16.106,60.54220136]
[1673327907862,17.0,16.12,16.106,60.54220136]
[1673327908066,20.0,16.119,16.106,60.54220136]
[1673327908492,161.1180026,16.119,16.106,60.54220136]
[1673327908706,141.1180026,16.118,16.106,60.54220136]
[1673327909655,141.1180026,16.118,16.107,20.0]
[1673327910691,20.0,16.117,16.107,20.0]
[1673327910903,141.1180026,16.118,16.107,20.0]
[1673327911107,20.0,16.117,16.108,13.96220136]
[1673327911319,17.0,16.116,16.109,20.0]
[1673327911658,161.07266926,16.117,16.109,20.0]
[1673327911870,141.07266926,16.117,16.109,20.0]
[1673327912917,20.0,16.119,16.109,20.0]
[1673327913848,20.0,16.119,16.108,13.96220136]
[1673327914060,20.0,16.119,16.109,33.96220136]
[1673327914261,20.0,16.119,16.109,13.96220136]
[1673327914698,109.8854,16.12,16.106,20.0]
[1673327914896,109.8854,16.12,16.108,20.0]
[1673327915106,20.0,16.119,16.109,20.0]
[1673327915340,109.8854,16.12,16.109,20.0]
[1673327915525,109.8854,16.12,16.11,13.96220136]
[1673327915857,109.8854,16.12,16.109,20.0]
[1673327917652,20.0,16.119,16.109,20.0]
[1673327917853,109.8854,16.12,16.109,20.0]
[1673327918688,108.8854,16.12,16.109,20.0]
[1673327922982,20.0,16.119,16.109,20.0]
[1673327924489,46.51,16.132,16.11,191.80220136]
[1673327924696,0.613865,16.133,16.121,20.0]
[1673327924914,0.613865,16.133,16.122,66.54]
[1673327925104,0.613865,16.133,16.123,20.0]
[1673327925434,0.613865,16.133,16.125,20.0]
[1673327925649,0.613865,16.133,16.126,20.0]
[1673327926915,0.613865,16.133,16.127,20.0]
[1673327927096,0.613865,16.133,16.12,26.42]
[1673327927307,0.613865,16.133,16.114,46.56]
[1673327927527,0.613865,16.133,16.116,20.0]
[1673327927528,46.51,16.132,16.116,20.0]
[1673327927722,20.0,16.131,16.116,20.0]
[1673327928157,17.0,16.13,16.116,20.0]
[1673327928373,17.0,16.13,16.116,33.96220136]
[1673327929115,17.0,16.13,16.117,20.0]
[1673327929313,17.0,16.13,16.118,20.0]
[1673327930780,17.0,16.13,16.116,33.96220136]
[1673327930781,17.0,16.13,16.116,13.96220136]
[1673327930993,20.0,16.129,16.115,20.0]
[1673327931211,20.0,16.127,16.116,20.0]
[1673327932245,20.0,16.127,16.115,20.0]
[1673327932454,20.0,16.127,16.116,20.0]
[1673327933294,20.0,16.127,16.114,46.56]
[1673327933510,20.0,16.125,16.112,43.26276891]
[1673327933722,20.0,16.125,16.103,20.0]
[1673327933723,3.16677113,16.123,16.103,20.0]
[1673327933942,40.16677113,16.123,16.103,20.0]
[1673327934152,37.0,16.123,16.104,46.59]
[1673327934349,37.0,16.123,16.105,20.0]
[1673327934559,17.0,16.123,16.106,46.58]
[1673327934790,108.3641,16.124,16.111,20.0]
[1673327935101,108.3641,16.124,16.111,66.57]
[1673327935285,20.0,16.123,16.111,66.57]
[1673327936249,20.0,16.123,16.111,46.57]
[1673327937082,20.0,16.123,16.11,26.13]
[1673327937292,17.0,16.122,16.11,26.13]
[1673327937931,17.0,16.122,16.108,46.58]
[1673327938143,20.0,16.121,16.109,20.0]
[1673327938464,17.0,16.12,16.109,20.0]
[1673327938654,17.0,16.12,16.107,20.0]
[1673327940773,17.0,16.12,16.108,20.0]
[1673327941082,17.0,16.12,16.109,20.0]
[1673327941300,20.0,16.121,16.109,20.0]
[1673327941702,17.0,16.12,16.107,20.0]
[1673327942336,5.6095781,16.14,16.11,130.99]
[1673327942540,117.1674,16.138,16.121,20.0]
[1673327942764,117.1674,16.138,16.122,66.54]
[1673327943193,117.1674,16.138,16.123,20.0]
[1673327943504,117.1674,16.138,16.125,20.0]
[1673327943721,117.1674,16.138,16.126,20.0]
[1673327944962,117.1674,16.138,16.127,20.0]
[1673327945172,117.1674,16.138,16.128,20.0]
[1673327945388,5.6095781,16.14,16.128,20.0]
[1673327945604,5.6095781,16.14,16.129,20.0]
[1673327947294,5.6095781,16.14,16.129,33.96220136]
[1673327947479,5.6095781,16.14,16.129,20.0]
[1673327949076,5.6095781,16.14,16.13,60.47220136]
[1673327949291,5.6095781,16.14,16.131,20.0]
[1673327952117,5.6095781,16.14,16.132,13.96220136]
[1673327952330,5.6095781,16.14,16.131,20.0]
[1673327952841,5.6095781,16.14,16.13,72.6]
[1673327953056,5.6095781,16.14,16.128,20.0]
[1673327953281,5.6095781,16.14,16.124,20.0]
[1673327953686,5.6095781,16.14,16.125,66.53]
[1673327954012,20.0,16.138,16.127,20.0]
[1673327954223,20.0,16.138,16.128,20.0]
[1673327955786,20.25589628,16.137,16.11,26.2]
[1673327956021,46.5,16.136,16.11,26.2]
[1673327956223,42.35270419,16.135,16.11,26.2]
[1673327956437,20.0,16.133,16.112,20.0]
[1673327956630,88.86270419,16.132,16.112,20.0]
[1673327956961,5.46148852,16.129,16.1,131.5]
[1673327957153,5.7494157,16.126,16.101,20.0]
[1673327957366,5.7494157,16.124,16.11,26.09]
[1673327957577,25.7494157,16.125,16.11,26.09]
[1673327957780,5.7494157,16.123,16.11,26.09]
[1673327957991,5.7494157,16.124,16.104,46.59]
[1673327958211,24.75003251,16.122,16.104,46.59]
[1673327958424,5.7494157,16.12,16.102,46.59]
[1673327958628,5.7494157,16.117,16.102,46.59]
[1673327958858,5.7494157,16.117,16.103,20.0]
[1673327959052,5.7494157,16.117,16.104,46.59]
[1673327959268,5.7494157,16.117,16.101,20.0]
[1673327959577,5.7494157,16.115,16.094,46.62]
[1673327959797,25.7494157,16.115,16.095,20.0]
[1673327960106,25.7494157,16.115,16.094,46.62]
[1673327960107,6.14891471,16.113,16.094,46.62]
[1673327960325,46.56,16.112,16.091,46.63]
[1673327960641,20.0,16.11,16.092,20.0]
[1673327960853,23.14891471,16.109,16.093,46.62]
[1673327961265,20.0,16.108,16.093,46.62]
[1673327961462,23.14891471,16.107,16.093,46.62]
[1673327961673,42.14953152,16.107,16.091,46.63]
[1673327961916,20.0,16.105,16.082,20.0]
[1673327962128,69.73891471,16.104,16.083,46.65]
[1673327962339,69.73891471,16.104,16.081,46.65]
[1673327962549,39.00061681,16.103,16.082,20.0]
[1673327962781,69.73891471,16.102,16.083,46.65]
[1673327963088,20.0,16.101,16.083,46.65]
[1673327963302,17.0,16.1,16.081,46.65]
[1673327963613,6.14891471,16.097,16.081,46.65]
[1673327963824,17.0,16.096,16.081,46.65]
[1673327964021,6.14891471,16.095,16.081,46.65]
[1673327964232,6.14891471,16.093,16.081,46.65]
[1673327964450,6.14891471,16.095,16.082,20.0]
[1673327964657,6.14891471,16.093,16.083,46.65]
[1673327964965,6.14891471,16.095,16.084,20.0]
[1673327965194,17.0,16.094,16.084,20.0]
[1673327965389,6.14891471,16.093,16.084,20.0]
[1673327965596,6.14891471,16.093,16.082,20.0]
[1673327965804,17.0,16.092,16.08,26.44]
[1673327966012,6.14891471,16.091,16.08,26.44]
[1673327966227,20.0,16.089,16.073,20.0]
[1673327966449,6.14891471,16.088,16.075,20.0]
[1673327966641,6.14891471,16.088,16.076,46.67]
[1673327967288,6.14891471,16.088,16.074,46.67]
[1673327967506,17.0,16.087,16.073,20.0]
[1673327967709,6.14891471,16.086,16.074,46.67]
[1673327967922,6.14891471,16.09,16.074,46.67]
[1673327968134,6.14891471,16.091,16.08,26.03]
[1673327969386,17.0,16.09,16.08,26.03]
[1673327969597,6.14891471,16.089,16.078,46.66]
[1673327969804,6.14891471,16.089,16.079,20.0]
[1673327970017,6.14891471,16.089,16.08,46.66]
[1673327970445,188.1,16.087,16.05,231.58350972]
[1673327970651,26.18,16.08,16.06,26.27]
[1673327970858,23.14891471,16.079,16.06,26.27]
[1673327971075,23.14891471,16.079,16.062,35.83]
[1673327971484,20.0,16.078,16.062,35.83]
[1673327971699,69.81891471,16.077,16.053,37.89]
[1673327971910,88.81953152,16.077,16.053,37.89]
[1673327972122,20.0,16.076,16.054,20.0]
[1673327972339,20.0,16.074,16.055,37.96]
[1673327972534,17.0,16.073,16.055,37.96]
[1673327972741,63.68,16.073,16.055,37.96]
[1673327972957,63.68,16.073,16.051,40.1]
[1673327973171,66.67,16.074,16.052,20.0]
[1673327973396,20.0,16.074,16.054,20.0]
[1673327973593,26.14891471,16.074,16.055,40.88]
[1673327973806,26.14891471,16.074,16.056,20.0]
[1673327974015,20.0,16.074,16.057,42.42]
[1673327974232,46.68,16.073,16.055,43.7]
[1673327974547,20.0,16.072,16.055,43.7]
[1673327974965,20.0,16.07,16.055,43.7]
[1673327975165,17.0,16.069,16.055,43.7]
[1673327975694,20.0,16.072,16.055,43.7]
[1673327975915,20.0,16.072,16.056,20.0]
[1673327976221,20.0,16.072,16.057,46.37]
[1673327976845,17.0,16.071,16.058,20.0]
[1673327977269,17.0,16.071,16.059,46.72]
[1673327977700,17.0,16.071,16.057,46.72]
[1673327978446,20.0,16.072,16.058,20.0]
[1673327978848,20.0,16.072,16.057,46.72]
[1673327979794,17.0,16.071,16.057,46.72]
[1673327980006,20.0,16.072,16.058,20.0]
[1673327980215,20.0,16.072,16.059,46.72]
[1673327980443,20.0,16.072,16.058,20.0]
[1673327981802,20.0,16.072,16.059,46.72]
[1673327982016,17.0,16.071,16.059,46.72]
[1673327982327,17.0,16.071,16.058,20.0]
[1673327986516,20.0,16.072,16.058,20.0]
[1673327986517,66.67,16.074,16.058,20.0]
[1673327986834,23.10010945,16.074,16.058,20.0]
[1673327987044,20.0,16.074,16.06,20.0]
[1673327988299,20.0,16.074,16.059,46.72]
[1673327988508,20.0,16.074,16.056,20.0]
[1673327988724,23.23405591,16.074,16.055,46.73]
[1673327988940,46.68,16.073,16.055,46.73]
[1673327989154,17.0,16.072,16.055,46.73]
[1673327989367,20.0,16.071,16.056,20.0]
[1673327989578,17.0,16.07,16.056,20.0]
[1673327990097,17.0,16.07,16.013,137.00525397]
[1673327990098,4.77268152,16.068,16.04,131.58]
[1673327990312,4.77268152,16.066,16.051,13.96220136]
[1673327990508,4.77268152,16.064,16.051,13.96220136]
[1673327990719,4.77268152,16.062,16.05,26.13]
[1673327990929,20.0,16.062,16.05,26.13]
[1673327991139,20.0,16.062,16.05,40.29214748]
[1673327991346,24.77268152,16.062,16.05,40.29214748]
[1673327992615,63.71,16.061,16.045,20.0]
[1673327992828,20.0,16.06,16.046,14.16214748]
[1673327993037,20.0,16.058,16.046,14.16214748]
[1673327993469,46.72,16.059,16.047,20.0]
[1673327993667,46.71,16.061,16.05,26.27]
[1673327993864,3.19902037,16.063,16.05,26.27]
[1673327994078,46.71,16.062,16.05,26.27]
[1673327994725,20.0,16.061,16.051,14.16214748]
[1673327994938,66.7,16.065,16.051,14.16214748]
[1673327995151,3.1371282,16.064,16.051,14.16214748]
[1673327995675,46.71,16.063,16.05,26.27]
[1673327995886,23.38053456,16.062,16.05,26.27]
[1673327996076,20.0,16.065,16.051,34.16214748]
[1673327996287,3.13428584,16.064,16.051,34.16214748]
[1673327996599,3.1280299,16.064,16.051,34.16214748]
[1673327996813,3.1280299,16.064,16.052,17.0]
[1673327997235,20.0,16.065,16.052,17.0]
[1673327997442,26.27,16.06,16.047,32.99545817]
[1673327997655,4.21361285,16.063,16.041,20.0]
[1673327997656,86.72,16.059,16.041,20.0]
[1673327997865,86.72,16.059,16.043,14.16214748]
[1673327998082,66.72,16.059,16.043,14.16214748]
[1673327998395,46.72,16.06,16.044,20.0]
[1673327998724,46.72,16.06,16.045,14.16214748]
[1673327999134,46.72,16.06,16.046,20.0]
[1673327999575,46.72,16.06,16.047,14.16214748]
[1673327999762,37.0,16.059,16.04,26.42]
[1673327999976,66.72,16.058,16.04,40.58214748]
[1673328000287,17.0,16.057,16.04,40.58214748]
[1673328000497,46.73,16.056,16.04,40.58214748]
[1673328001548,17.0,16.055,16.042,17.0]
[1673328002088,17.0,16.056,16.043,20.0]
[1673328002301,46.72,16.058,16.044,17.0]
[1673328002494,20.0,16.069,16.044,31.16214748]
[1673328002495,46.71,16.063,16.044,31.16214748]
[1673328002706,23.10047607,16.062,16.046,20.0]
[1673328002916,46.71,16.061,16.047,17.0]
[1673328003129,46.71,16.061,16.039,46.78]
[1673328003130,40.0,16.06,16.039,46.78]
[1673328003456,46.72,16.059,16.04,26.42]
[1673328003856,17.0,16.058,16.041,20.0]
[1673328004064,66.72,16.057,16.041,20.0]
[1673328004298,17.0,16.056,16.041,20.0]
[1673328004612,46.73,16.055,16.041,20.0]
[1673328005326,46.73,16.055,16.042,17.0]
[1673328005759,20.0,16.058,16.042,17.0]
[1673328005968,20.0,16.056,16.042,17.0]
[1673328006173,46.73,16.055,16.042,17.0]
[1673328006822,46.73,16.055,16.04,40.58214748]
[1673328007010,20.0,16.054,16.04,40.58214748]
[1673328007432,20.0,16.054,16.04,26.42]
[1673328007640,20.0,16.052,16.037,5.6095781]
[1673328007854,46.74,16.051,16.037,5.6095781]
[1673328008074,46.73,16.055,16.039,20.0]
[1673328008280,46.73,16.055,16.04,20.0]
[1673328008490,17.0,16.054,16.04,20.0]
[1673328008701,46.74,16.053,16.04,34.16214748]
[1673328009126,46.74,16.053,16.04,60.29214748]
[1673328009330,46.74,16.053,16.041,20.0]
[1673328010495,46.72,16.059,16.042,14.16214748]
[1673328010811,46.71,16.061,16.042,14.16214748]
[1673328011020,20.0,16.059,16.043,20.0]
[1673328011213,66.72,16.059,16.044,17.0]
[1673328011427,20.0,16.059,16.045,20.0]
[1673328011631,208.1,16.058,16.037,34.33582656]
[1673328011950,208.1,16.058,16.037,5.6095781]
[1673328011951,20.0,16.049,16.037,5.6095781]
[1673328012160,46.75,16.048,16.037,5.6095781]
[1673328012586,20.0,16.047,16.037,5.6095781]
[1673328012797,46.76,16.046,16.037,5.6095781]
[1673328013018,20.0,16.045,16.037,5.6095781]
[1673328013223,46.76,16.044,16.037,5.6095781]
[1673328013540,20.0,16.042,16.037,5.6095781]
[1673328013755,66.77,16.042,16.037,5.6095781]
[1673328014071,17.0,16.041,16.037,5.6095781]
[1673328015326,46.77,16.041,16.037,5.6095781]
[1673328015538,20.0,16.04,16.037,5.6095781]
[1673328017333,20.0,16.04,16.028,20.0]
[1673328017540,20.0,16.04,16.024,20.0]
[1673328017541,66.78,16.039,16.024,20.0]
[1673328017730,83.78,16.039,16.024,20.0]
[1673328017940,20.0,16.038,16.024,20.0]
[1673328018173,63.78,16.037,16.024,20.0]
[1673328018376,20.0,16.036,16.024,20.0]
[1673328018591,46.79,16.035,16.024,20.0]
[1673328018799,66.79,16.036,16.024,20.0]
[1673328020786,66.79,16.036,16.025,17.0]
[1673328020997,20.0,16.036,16.025,17.0]
[1673328021324,20.0,16.036,16.024,20.0]
[1673328022281,46.79,16.035,16.024,20.0]
[1673328022995,20.0,16.036,16.024,20.0]
[1673328023207,46.79,16.035,16.024,20.0]
[1673328023630,20.0,16.036,16.024,20.0]
[1673328027943,46.77,16.042,16.025,17.0]
[1673328028145,26.38,16.05,16.026,70.5]
[1673328028146,46.76,16.046,16.026,70.5]
[1673328028358,46.76,16.046,16.027,17.0]
[1673328028573,46.76,16.046,16.029,20.0]
[1673328028782,20.0,16.045,16.03,20.0]
[1673328029000,20.0,16.045,16.031,20.0]
[1673328029421,20.0,16.045,16.032,17.0]
[1673328031523,17.0,16.044,16.031,20.0]
[1673328031927,20.0,16.045,16.031,20.0]
[1673328032138,46.75,16.048,16.033,20.0]
[1673328032352,46.75,16.049,16.033,20.0]
[1673328032665,20.0,16.049,16.032,31.23]
[1673328032881,46.75,16.048,16.031,32.3]
[1673328033208,20.0,16.047,16.03,20.0]
[1673328033424,46.76,16.046,16.031,20.0]
[1673328033607,20.0,16.045,16.031,20.0]
[1673328034032,20.0,16.045,16.032,17.0]
[1673328036165,66.75,16.049,16.033,20.0]
[1673328036466,72.78,16.05,16.035,20.0]
[1673328036677,46.73,16.054,16.04,26.27]
[1673328036891,46.72,16.057,16.041,17.0]
[1673328037083,116.3226,16.058,16.042,37.92]
[1673328037515,46.71,16.063,16.043,31.16214748]
[1673328037715,20.0,16.062,16.045,20.0]
[1673328038034,46.71,16.061,16.046,17.0]
[1673328038239,20.0,16.06,16.046,17.0]
[1673328039103,46.72,16.059,16.046,17.0]
[1673328039409,46.72,16.059,16.044,20.0]
[1673328039834,46.72,16.059,16.045,17.0]
[1673328040253,20.0,16.06,16.045,17.0]
[1673328040441,20.0,16.059,16.045,17.0]
[1673328041075,20.0,16.059,16.044,14.16214748]
[1673328041291,66.72,16.058,16.041,42.17]
[1673328041512,83.72,16.058,16.04,26.42]